bitfinex-derivatives/quotes_ETHF0:USTF0_20240830
["timestamp","ask_amount","ask_price","bid_price","bid_amount"]
[1724978397567,0.39466,2533.4,2533.1,3.7841]
[1724978397767,0.3702,2533.3,2533.1,3.7841]
[1724978397967,0.7461,2533.3,2533.1,3.7841]
[1724978398168,0.7461,2533.3,2533.1,4.17881]
[1724978398380,0.3702,2533.3,2533.1,3.7841]
[1724978399476,0.3702,2533.3,2533.1,4.17881]
[1724978400568,0.3759,2533.7,2533.1,3.7841]
[1724978400774,0.77804,2533.6,2533.3,0.39468]
[1724978400974,0.77804,2533.6,2533.2,0.3711]
[1724978401174,0.77804,2533.6,2533.3,0.39468]
[1724978401674,0.3834,2533.6,2533.3,3.2078]
[1724978401881,0.3834,2533.6,2533.4,0.39466]
[1724978402979,0.3834,2533.6,2533.5,0.39465]
[1724978403376,0.3834,2533.6,2533.4,0.39465]
[1724978403572,0.39465,2533.5,2533.3,3.2078]
[1724978403875,0.3834,2533.6,2533.3,3.2078]
[1724978403876,0.39466,2533.4,2533.3,3.2078]
[1724978404269,0.39465,2533.5,2533.3,3.2078]
[1724978405774,0.77804,2533.6,2533.3,3.2078]
[1724978406382,0.39465,2533.5,2533.3,3.2078]
[1724978406575,0.39466,2533.4,2533.3,3.2078]
[1724978407083,4.34186,2533.4,2533.3,3.2078]
[1724978407791,0.39469,2533.3,2533.1,0.3741]
[1724978407969,0.76719,2533.3,2533.1,0.3741]
[1724978408373,0.39469,2533.2,2533.1,0.3741]
[1724978408570,0.39469,2533.2,2533.0,3.2078]
[1724978408773,0.74761,2533.1,2533.0,3.2078]
[1724978410780,0.3529,2533.1,2533.0,3.60252]
[1724978410983,0.76718,2533.3,2533.0,3.60252]
[1724978411576,0.39469,2533.2,2533.0,3.2078]
[1724978412271,0.39471,2533.1,2533.0,3.2078]
[1724978413679,0.39474,2532.9,2532.7,1.02596917]
[1724978413883,0.76836,2532.8,2532.7,1.02596917]
[1724978414086,1.13496,2532.8,2532.7,1.02596917]
[1724978414385,5.08296,2532.8,2532.7,1.02596917]
[1724978415579,6.06986,2532.8,2532.7,1.02596917]
[1724978417090,5.08296,2532.8,2532.7,1.02596917]
[1724978417890,1.13496,2532.8,2532.7,1.02596917]
[1724978418492,5.08296,2532.8,2532.6,0.00592675]
[1724978418786,0.39477,2532.7,2532.6,0.00592675]
[1724978420087,4.34357,2532.7,2532.6,0.00592675]
[1724978421895,0.39477,2532.7,2532.6,0.00592675]
[1724978443018,1.38171,2532.7,2532.6,0.00592675]
[1724978448520,5.33051,2532.7,2532.6,0.00592675]
[1724978449120,8.53831,2532.7,2532.6,0.00592675]
[1724978450018,5.33051,2532.7,2532.6,0.00592675]
[1724978450421,8.53831,2532.7,2532.6,0.00592675]
[1724978450722,0.39486,2532.1,2532.0,1.02596917]
[1724978450921,0.39488,2532.0,2531.9,1.02596917]
[1724978451120,0.39488,2532.0,2531.9,0.41356484]
[1724978451725,0.72992675,2532.2,2532.0,0.27552]
[1724978452022,0.39486,2532.1,2532.0,0.27552]
[1724978454824,0.72992675,2532.2,2532.1,1.0155]
[1724978455228,2.11190675,2532.2,2532.1,1.0155]
[1724978455730,17.91140574,2532.2,2532.1,1.0155]
[1724978457833,0.39491,2531.8,2531.7,0.00592675]
[1724978460221,0.39491,2531.8,2531.7,1.42592675]
[1724978462337,4.19501,2532.1,2531.8,0.77949]
[1724978462625,0.3949,2531.9,2531.8,0.77949]
[1724978463028,5.33175,2531.9,2531.8,0.77949]
[1724978463331,6.75175,2531.9,2531.8,0.77949]
[1724978463631,0.39499,2531.3,2531.2,0.3599]
[1724978463820,0.39499,2531.3,2531.2,4.3103]
[1724978464022,0.3528,2531.8,2531.2,5.7303]
[1724978464217,7.77671,2531.9,2531.5,1.42]
[1724978464422,3.60271,2531.9,2531.8,1.42]
[1724978464830,3.60271,2531.9,2531.7,0.3599]
[1724978465525,3.2078,2531.9,2531.7,0.3599]
[1724978465729,3.6027,2531.9,2531.7,0.3599]
[1724978466328,0.39491,2531.8,2531.7,0.3599]
[1724978466523,3.6027,2531.9,2531.7,0.3599]
[1724978467535,0.39491,2531.8,2531.7,0.3599]
[1724978468230,0.39493,2531.7,2531.6,0.7476]
[1724978468621,0.98726,2531.9,2531.4,3.2078]
[1724978468827,0.39496,2531.5,2531.4,3.2078]
[1724978469028,0.78335,2531.6,2531.4,3.2078]
[1724978469325,0.78335,2531.6,2531.3,2.54511675]
[1724978469326,0.39496,2531.5,2531.3,2.15012675]
[1724978470730,0.39496,2531.5,2531.3,2.54511675]
[1724978471124,0.39497,2531.4,2531.3,0.73012675]
[1724978471328,0.77657,2531.4,2531.3,0.73012675]
[1724978471827,0.77657,2531.4,2531.3,0.37132675]
[1724978472032,0.77657,2531.4,2531.3,0.00592675]
[1724978474731,7.13441,2531.4,2531.3,0.00592675]
[1724978474937,10.34221,2531.4,2531.3,0.00592675]
[1724978477833,20.90408763,2531.4,2531.3,0.00592675]
[1724978479037,20.90408763,2531.4,2530.3,1.81514]
[1724978479038,0.3951,2530.7,2530.3,1.81514]
[1724978479225,0.3951,2530.7,2530.4,0.3898]
[1724978479833,0.3951,2530.6,2530.4,0.3898]
[1724978480037,0.3951,2530.6,2530.4,1.8098]
[1724978480233,0.39509,2530.7,2530.4,2.20493]
[1724978480630,0.39509,2530.7,2530.4,1.8098]
[1724978481635,0.39511,2530.5,2530.3,41.17952675]
[1724978481838,0.39511,2530.5,2530.3,42.95762675]
[1724978483130,0.39511,2530.5,2530.3,43.35276675]
[1724978483339,0.00592675,2530.8,2530.4,0.39512]
[1724978483537,0.39509,2530.7,2530.6,1.42]
[1724978483929,0.40100675,2530.8,2530.6,1.42]
[1724978484834,0.39508,2530.7,2530.6,1.42]
[1724978485442,0.00592675,2530.8,2530.6,1.42]
[1724978485443,0.40099675,2530.8,2530.6,1.42]
[1724978488741,0.00592675,2530.8,2530.7,0.39508]
[1724978488945,0.00592675,2530.8,2530.7,0.75068]
[1724978489142,0.00592675,2530.8,2530.7,4.70188]
[1724978490646,0.00592675,2530.8,2530.7,3.9512]
[1724978490849,0.00592675,2530.8,2530.6,1.42]
[1724978490850,0.40099675,2530.8,2530.6,1.42]
[1724978491050,0.75389675,2530.8,2530.6,1.42]
[1724978491847,0.39508,2530.7,2530.6,1.42]
[1724978492160,0.39508,2530.7,2530.5,3.60291]
[1724978492843,0.35882675,2530.8,2530.5,3.2078]
[1724978493045,0.3799,2530.6,2530.5,3.2078]
[1724978494136,0.775,2530.6,2530.5,3.2078]
[1724978494544,0.35882675,2530.8,2530.5,3.60291]
[1724978494749,0.00592675,2530.8,2530.7,0.39508]
[1724978501249,0.00592675,2530.8,2530.7,0.75378]
[1724978502053,0.00592675,2530.8,2530.5,3.2078]
[1724978502250,0.39508,2530.7,2530.5,3.60291]
[1724978504255,1.13958,2530.7,2530.5,3.60291]
[1724978504456,0.3951,2530.6,2530.5,3.2078]
[1724978506752,0.7445,2530.7,2530.5,3.60291]
[1724978506945,1.13959,2530.7,2530.5,3.60291]
[1724978507458,0.7445,2530.7,2530.6,0.3951]
[1724978507650,0.3651,2530.7,2530.6,0.3951]
[1724978508746,0.76018,2530.7,2530.5,3.6029]
[1724978509653,0.3651,2530.7,2530.5,3.2078]
[1724978509860,0.3951,2530.6,2530.5,3.2078]
[1724978511158,0.39513,2530.4,2530.3,0.00592675]
[1724978513852,6.75496,2530.4,2530.3,0.00592675]
[1724978514055,0.39519,2530.0,2529.9,3.2078]
[1724978516854,3.2078,2530.4,2529.9,3.2078]
[1724978517166,3.5739,2530.4,2530.2,1.42]
[1724978517361,3.5739,2530.4,2530.1,1.81517]
[1724978517967,3.5739,2530.4,2530.1,0.39517]
[1724978518461,3.2078,2530.4,2530.3,0.39515]
[1724978518666,3.2078,2530.4,2530.3,0.41471423]
[1724978518865,3.2078,2530.4,2530.3,4.36671423]
[1724978519063,0.3802,2530.7,2530.3,4.36671423]
[1724978519064,0.39513,2530.5,2530.3,4.36671423]
[1724978519274,0.39513,2530.5,2530.2,1.02596917]
[1724978519275,0.39513,2530.5,2530.1,1.42113917]
[1724978519473,0.39515,2530.3,2530.2,0.41470093]
[1724978519663,0.3661,2530.4,2530.0,1.77026917]
[1724978519864,0.77536,2530.2,2530.1,41.21479826]
[1724978520266,0.77536,2530.2,2530.1,40.8]
[1724978520474,0.39518,2530.1,2530.0,0.7443]
[1724978520679,0.77537,2530.2,2530.0,0.41483415]
[1724978520874,0.39519,2530.1,2529.9,44.0078]
[1724978521174,0.39519,2530.1,2530.0,0.41484745]
[1724978521565,0.3802,2530.2,2530.0,0.41483009]
[1724978521769,0.3802,2530.2,2529.9,44.0078]
[1724978521972,0.39519,2530.0,2529.9,44.0078]
[1724978522280,0.39519,2530.0,2529.9,3.62264674]
[1724978522584,0.39522,2529.8,2529.7,0.00592675]
[1724978523473,4.72002,2529.8,2529.7,0.00592675]
[1724978524572,0.76722,2529.8,2529.7,0.00592675]
[1724978529885,4.72002,2529.8,2529.7,0.00592675]
[1724978530086,5.70809,2529.8,2529.7,0.00592675]
[1724978530485,8.91589,2529.8,2529.7,0.00592675]
[1724978530685,16.5919651,2529.8,2529.7,0.00592675]
[1724978530890,0.39535,2529.0,2528.7,0.39539]
[1724978531087,0.39535,2529.0,2528.8,1.15308312]
[1724978531291,0.39535,2529.0,2528.8,0.7377]
[1724978532391,0.00592675,2529.2,2528.8,0.7377]
[1724978532583,0.00592675,2529.2,2528.8,0.3621]
[1724978532584,0.39536,2528.9,2528.8,0.3621]
[1724978532786,0.39539,2528.8,2528.6,3.21175113]
[1724978532987,0.3954,2528.7,2528.6,3.21175113]
[1724978533195,0.7574,2528.8,2528.6,3.60716113]
[1724978533390,3.2078,2529.1,2528.6,7.16615113]
[1724978533586,0.39535,2529.0,2528.7,0.39538]
[1724978533790,0.39535,2529.0,2528.8,0.3712]
[1724978534193,3.2078,2529.1,2528.9,0.7418]
[1724978534394,3.60314,2529.1,2528.9,0.7418]
[1724978535192,0.39535,2529.0,2528.9,0.7418]
[1724978537188,0.39535,2529.0,2528.6,0.78625113]
[1724978537390,0.39535,2529.0,2528.7,1.12209]
[1724978537792,0.39535,2529.0,2528.7,41.92209]
[1724978537996,0.39538,2528.8,2528.7,0.7267]
[1724978538303,0.74887,2528.9,2528.7,0.7267]
[1724978538603,0.74887,2528.9,2528.8,40.8]
[1724978539095,0.39535,2529.0,2528.8,40.8]
[1724978539601,0.39536,2528.9,2528.8,40.8]
[1724978539903,3.76942675,2529.2,2528.8,41.19538]
[1724978539904,0.39536,2529.0,2528.8,41.19538]
[1724978540399,0.35942675,2529.2,2529.0,0.39534]
[1724978540594,0.35942675,2529.2,2528.8,40.8]
[1724978540595,0.00592675,2529.2,2529.1,0.76223]
[1724978542391,0.00592675,2529.2,2529.1,4.71583]
[1724978542690,3.2078,2529.8,2529.1,4.71583]
[1724978542691,0.39523,2529.8,2529.6,0.39525]
[1724978542993,0.39523,2529.8,2529.7,0.3911]
[1724978544395,1.13332,2529.9,2529.7,0.3911]
[1724978544596,0.39522,2529.8,2529.7,0.3911]
[1724978544897,0.7381,2529.9,2529.7,0.3911]
[1724978545097,0.39522,2529.8,2529.7,0.3911]
[1724978545304,1.13332,2529.9,2529.7,0.3911]
[1724978546695,0.39522,2529.8,2529.7,0.3911]
[1724978546896,1.13332,2529.9,2529.7,0.3911]
[1724978548808,0.39522,2529.8,2529.7,0.3911]
[1724978549306,0.39526,2529.6,2529.3,3.60309]
[1724978549601,0.39525,2529.7,2529.4,0.75009]
[1724978550190,0.39526,2529.6,2529.4,0.3548]
[1724978550594,0.39525,2529.7,2529.4,0.75008]
[1724978551602,0.7381,2529.9,2529.4,0.3548]
[1724978551904,1.13331,2529.9,2529.4,0.3548]
[1724978552106,0.39522,2529.8,2529.5,0.39526]
[1724978553596,0.40112675,2530.0,2529.7,0.39523]
[1724978553909,0.39521,2529.9,2529.7,0.39523]
[1724978554108,0.39521,2529.9,2529.8,0.7552]
[1724978555497,0.40112675,2530.0,2529.8,1.15042]
[1724978555697,0.39521,2529.9,2529.8,0.7552]
[1724978557198,0.39523,2529.8,2529.6,0.39525]
[1724978557403,0.75373,2529.8,2529.6,0.39525]
[1724978557699,0.75373,2529.8,2529.4,3.5698]
[1724978557700,0.3585,2529.8,2529.4,3.5698]
[1724978557907,0.39527,2529.5,2529.4,3.2078]
[1724978560508,7.75887,2529.5,2529.4,3.2078]
[1724978560698,7.75887,2529.5,2528.8,4.107]
[1724978560699,0.39534,2529.1,2528.8,4.107]
[1724978560905,0.39533,2529.1,2528.9,0.3902]
[1724978561114,0.39533,2529.1,2528.9,0.7786]
[1724978561719,0.39535,2529.0,2528.8,0.3749]
[1724978562012,0.76185,2529.0,2528.8,0.3749]
[1724978563002,0.76185,2529.0,2528.7,3.60319]
[1724978563607,0.98822,2529.4,2528.9,0.39536]
[1724978563805,0.39534,2529.1,2528.8,0.39537]
[1724978565914,0.39535,2529.0,2528.8,0.39537]
[1724978566115,0.39535,2529.0,2528.7,4.62915917]
[1724978566307,0.39535,2529.0,2528.8,0.41540989]
[1724978566506,0.39535,2529.0,2528.8,1.02596917]
[1724978566704,0.39535,2529.0,2528.9,0.41539235]
[1724978571510,4.39833,2529.2,2528.7,3.2078]
[1724978571511,0.39538,2528.8,2528.7,3.2078]
[1724978571814,0.39538,2528.8,2528.7,3.62325017]
[1724978572208,0.77848,2528.8,2528.7,3.62325017]
[1724978573214,0.77848,2528.8,2528.7,3.62327125]
[1724978573512,0.77848,2528.8,2528.7,3.2078]
[1724978573513,0.39538,2528.8,2528.7,3.2078]
[1724978573718,0.39538,2528.8,2528.7,3.62326673]
[1724978576021,0.78137,2528.9,2528.7,4.01866673]
[1724978576316,0.78137,2528.9,2528.8,0.41547054]
[1724978576818,0.78137,2528.9,2528.8,0.41545986]
[1724978576819,0.386,2528.9,2528.8,0.41545986]
[1724978577013,0.78137,2528.9,2528.8,0.41545986]
[1724978579507,0.386,2528.9,2528.8,0.81083986]
[1724978580221,0.386,2528.9,2528.7,0.39539]
[1724978580525,0.78136,2528.9,2528.8,0.41545721]
[1724978581214,0.78136,2528.9,2528.7,0.39539]
[1724978581615,0.78136,2528.9,2528.8,0.41546258]
[1724978581920,0.78136,2528.9,2528.8,0.80626258]
[1724978582625,0.3831,2529.1,2528.8,0.80626258]
[1724978582819,0.3831,2529.1,2529.0,0.39535]
[1724978583016,3.5917,2529.2,2529.0,0.39534]
[1724978583017,0.77922,2529.2,2529.0,0.39534]
[1724978583222,0.77922,2529.2,2529.0,0.77604]
[1724978586512,0.39533,2529.1,2528.9,0.3756]
[1724978586718,0.39535,2529.0,2528.9,0.3756]
[1724978586925,0.39535,2529.0,2528.9,0.7910498]
[1724978587424,0.39534,2529.1,2528.9,0.7910498]
[1724978587627,0.39534,2529.1,2528.9,0.3756]
[1724978589728,0.39534,2529.1,2529.0,0.41544105]
[1724978591435,0.39535,2529.0,2528.8,1.53717]
[1724978591624,0.39535,2529.0,2528.9,0.4154519]
[1724978591816,0.3954,2528.7,2528.6,1.0299203]
[1724978592023,0.3954,2528.7,2528.6,0.41944063]
[1724978592422,0.3954,2528.7,2528.6,0.00395113]
[1724978592827,3.8054,2528.7,2528.6,0.00395113]
[1724978594329,7.7598,2528.7,2528.6,0.00395113]
[1724978594633,8.7483,2528.7,2528.6,0.00395113]
[1724978599842,12.87111258,2528.7,2528.6,0.00395113]
[1724978600027,0.39547,2528.2,2528.1,0.3548]
[1724978600235,0.39549,2528.1,2527.9,3.9561]
[1724978600542,0.39551,2528.0,2527.9,4.3334]
[1724978600926,0.39551,2528.0,2527.9,5.0816]
[1724978601330,0.39551,2528.0,2527.9,1.1256]
[1724978601633,0.39551,2528.0,2527.9,0.3572]
[1724978604138,0.39552,2527.9,2527.8,0.7684]
[1724978604337,0.77652,2527.9,2527.7,0.00592675]
[1724978604731,0.39554,2527.8,2527.7,0.00592675]
[1724978605636,0.75464,2527.8,2527.7,0.00592675]
[1724978607536,0.77653,2527.9,2527.7,0.00592675]
[1724978608245,0.39554,2527.8,2527.7,0.00592675]
[1724978609139,3.21372675,2528.2,2527.7,6.62372675]
[1724978609351,3.21372675,2528.2,2528.0,0.39549]
[1724978609645,3.60920675,2528.2,2528.1,1.1303]
[1724978609938,3.21372675,2528.2,2528.1,1.1303]
[1724978610544,3.60919675,2528.2,2528.1,1.1303]
[1724978610839,3.21372675,2528.2,2528.1,1.1303]
[1724978611036,3.21372675,2528.2,2528.1,1.52579]
[1724978611236,0.00592675,2528.2,2528.1,1.52579]
[1724978611738,0.00592675,2528.2,2528.1,1.1303]
[1724978612139,0.00592675,2528.2,2528.1,5.0855]
[1724978612335,0.40139675,2528.2,2528.1,5.0855]
[1724978612841,0.40139675,2528.2,2528.1,1.1303]
[1724978614246,0.00592675,2528.2,2528.1,5.0855]
[1724978615045,0.40139675,2528.2,2527.9,0.39551]
[1724978615247,0.40139675,2528.2,2528.0,0.3955]
[1724978616347,0.40139675,2528.2,2527.9,0.39551]
[1724978616544,0.00592675,2528.2,2528.1,0.39549]
[1724978616945,0.00592675,2528.2,2528.1,4.35069]
[1724978618452,0.00592675,2528.2,2528.1,7.55849]
[1724978621655,0.40139675,2528.2,2528.1,3.2078]
[1724978621856,0.00592675,2528.2,2528.1,3.2078]
[1724978622055,0.40139675,2528.2,2528.1,3.2078]
[1724978623556,0.39551,2528.0,2527.8,1.0929]
[1724978623762,0.00592675,2528.2,2527.8,1.0929]
[1724978623763,0.3548,2528.1,2527.8,1.0929]
[1724978624660,0.39552,2527.9,2527.8,1.0929]
[1724978625062,0.3548,2528.1,2527.8,1.0929]
[1724978625564,0.39551,2528.0,2527.8,1.48843]
[1724978625950,0.39551,2528.0,2527.8,5.44443]
[1724978626156,0.3955,2528.1,2527.9,0.39552]
[1724978628171,0.39551,2528.0,2527.8,1.48843]
[1724978628361,0.3955,2528.1,2527.9,0.39552]
[1724978631669,0.39551,2528.0,2527.8,1.48843]
[1724978631961,0.76541,2528.0,2527.8,0.39553]
[1724978633268,0.39553,2527.9,2527.7,0.40146675]
[1724978633566,0.39553,2527.9,2527.8,0.4156018]
[1724978635459,0.39554,2527.8,2527.7,0.00592675]
[1724978636865,0.3956,2527.4,2527.3,1.02596917]
[1724978637062,0.3956,2527.4,2527.3,0.41566918]
[1724978637257,11.8447636,2527.4,2526.8,2.56492293]
[1724978637469,0.39561,2527.4,2527.1,3.2078]
[1724978637668,0.3956,2527.4,2527.2,0.41568304]
[1724978637874,0.3956,2527.4,2527.1,0.39564]
[1724978638075,3.60339,2527.5,2527.2,0.41568554]
[1724978638270,3.60339,2527.5,2527.2,0.39563]
[1724978638574,0.39559,2527.5,2527.2,0.39563]
[1724978638770,0.3749,2527.6,2527.4,0.39559]
[1724978638978,0.77047,2527.6,2527.3,0.3956]
[1724978639279,0.3749,2527.6,2527.4,0.81126186]
[1724978639482,3.2078,2527.7,2527.3,1.1017]
[1724978639661,3.2078,2527.7,2527.5,0.39557]
[1724978640577,0.75663,2527.9,2527.6,0.39557]
[1724978641073,4.56951,2528.0,2527.7,0.39554]
[1724978641274,0.75661,2528.0,2527.7,0.39554]
[1724978641480,0.75661,2528.0,2527.8,1.0992]
[1724978642176,0.39549,2528.1,2527.8,1.49473]
[1724978642566,0.39551,2528.0,2527.8,1.0992]
[1724978643681,0.39552,2527.9,2527.8,1.0992]
[1724978643979,0.39554,2527.8,2527.5,4.62934917]
[1724978644277,0.3689,2527.8,2527.6,0.41561925]
[1724978644480,0.39551,2528.0,2527.7,0.81116925]
[1724978644676,0.39551,2528.0,2527.8,0.41561925]
[1724978644867,0.39551,2528.0,2527.7,0.39555]
[1724978645266,0.39551,2528.0,2527.8,0.41561088]
[1724978645482,0.39551,2528.0,2527.7,0.39554]
[1724978645683,0.78061,2528.0,2527.8,0.41560225]
[1724978645884,0.78061,2528.0,2527.7,0.39554]
[1724978646084,0.78061,2528.0,2527.8,0.41560107]
[1724978646286,0.78061,2528.0,2527.7,0.39554]
[1724978646489,0.78061,2528.0,2527.8,0.41560188]
[1724978646784,0.39552,2527.9,2527.6,42.60102917]
[1724978646990,0.39554,2527.8,2527.7,0.4156131]
[1724978647881,0.39557,2527.6,2527.4,1.76986917]
[1724978648188,0.39557,2527.6,2527.5,0.41565489]
[1724978648389,0.39557,2527.6,2527.5,0.41565264]
[1724978649789,0.39559,2527.5,2527.3,4.107]
[1724978650093,0.39559,2527.5,2527.4,0.41566996]
[1724978650094,1.12799,2527.5,2527.4,0.41566996]
[1724978650395,0.3956,2527.4,2527.3,4.107]
[1724978650691,1.12799,2527.5,2527.3,0.41568087]
[1724978650990,0.3956,2527.4,2527.1,1.79980917]
[1724978651292,0.3956,2527.4,2527.2,0.4156783]
[1724978651488,0.3956,2527.4,2527.3,0.4156783]
[1724978651686,0.3956,2527.4,2527.3,0.41567904]
[1724978652191,1.12799,2527.5,2527.3,0.41567904]
[1724978652491,0.3956,2527.4,2527.1,1.79980917]
[1724978652794,0.3956,2527.4,2527.2,0.41566796]
[1724978652981,0.39561,2527.3,2527.1,1.40416917]
[1724978653181,0.7097,2527.6,2527.2,0.41567962]
[1724978653383,0.39563,2527.3,2527.1,0.3782]
[1724978653586,0.3553,2527.2,2527.1,0.3782]
[1724978653787,0.75093,2527.2,2527.1,0.79388777]
[1724978653994,0.3553,2527.2,2527.1,0.79388777]
[1724978654393,0.75093,2527.2,2527.1,0.79388777]
[1724978654786,0.3553,2527.2,2527.1,0.79388777]
[1724978654986,0.39562,2527.3,2527.1,0.79388777]
[1724978655187,0.39562,2527.3,2527.2,0.41568777]
[1724978655594,0.39564,2527.2,2527.0,40.8]
[1724978655796,0.39564,2527.2,2527.1,0.41570646]
[1724978656294,0.39566,2527.0,2526.9,3.2078]
[1724978656490,0.39566,2527.0,2526.9,3.62352898]
[1724978656993,0.77936,2527.0,2526.9,3.2078]
[1724978660098,0.77936,2527.0,2526.8,41.1785]
[1724978660303,0.39568,2526.9,2526.8,41.1785]
[1724978661002,0.77937,2527.0,2526.8,41.1785]
[1724978662304,0.77937,2527.0,2526.8,41.57419]
[1724978666801,3.41,2527.5,2527.0,0.39565]
[1724978667009,3.768,2527.5,2527.1,1.15004]
[1724978667199,0.39562,2527.3,2527.1,1.15004]
[1724978667817,0.39562,2527.3,2527.2,0.3789]
[1724978668510,0.39563,2527.2,2527.1,0.7544]
[1724978668908,0.39563,2527.3,2527.1,0.7544]
[1724978669410,3.768,2527.5,2527.1,0.3687]
[1724978669615,0.39563,2527.2,2527.0,0.39565]
[1724978673608,0.39563,2527.2,2526.9,1.14067]
[1724978674311,0.39565,2527.1,2526.9,1.14067]
[1724978675819,1.42,2527.1,2526.9,0.745]
[1724978677232,0.39566,2527.0,2526.9,0.745]
[1724978677517,0.39566,2527.0,2526.9,0.3789]
[1724978677718,0.78206,2527.0,2526.9,0.3789]
[1724978681117,0.78206,2527.0,2526.8,0.3533]
[1724978681118,0.39568,2526.9,2526.8,0.3533]
[1724978681315,0.39569,2526.8,2526.7,40.8]
[1724978681507,1.7739,2526.9,2526.7,0.41575436]
[1724978681709,0.39569,2526.8,2526.6,1.02596917]
[1724978681913,0.39569,2526.8,2526.7,0.4157447]
[1724978682418,1.81569,2526.8,2526.7,0.4157447]
[1724978682725,0.39572,2526.7,2526.5,46.14606917]
[1724978682918,0.39572,2526.7,2526.6,0.41577308]
[1724978685523,4.35332,2526.7,2526.6,0.41577308]
[1724978685726,4.35332,2526.7,2526.5,3.2078]
[1724978686027,0.39572,2526.7,2526.5,3.2078]
[1724978686324,0.39575,2526.5,2526.3,2.09386917]
[1724978686528,0.39575,2526.5,2526.4,0.41579497]
[1724978686926,1.8002,2526.6,2526.2,1.02596917]
[1724978687128,0.39582,2526.0,2525.8,5.13296917]
[1724978687318,0.39582,2526.0,2525.9,0.41586615]
[1724978687319,0.39583,2526.0,2525.9,0.41586615]
[1724978687539,1.42,2525.9,2525.8,1.0985]
[1724978687728,0.39583,2526.0,2525.8,1.0985]
[1724978689036,0.39583,2525.9,2525.8,1.0985]
[1724978689246,0.3728,2526.1,2525.6,0.739]
[1724978689247,3.7928,2526.1,2525.6,0.739]
[1724978689539,3.7928,2526.1,2525.6,1.49558]
[1724978689540,0.39583,2526.0,2525.6,1.49558]
[1724978689925,0.39584,2525.9,2525.6,1.49558]
[1724978690131,0.39584,2525.9,2525.6,42.29558]
[1724978690531,0.39584,2525.9,2525.6,1.0997]
[1724978690728,0.39586,2525.8,2525.6,0.7162]
[1724978692026,0.39588,2525.7,2525.4,4.8776]
[1724978692229,0.39588,2525.7,2525.4,0.7706]
[1724978693446,0.3875,2525.9,2525.3,0.94678592]
[1724978693647,0.3772,2525.6,2525.3,0.7519]
[1724978694030,0.39591,2525.4,2525.3,0.7519]
[1724978694539,0.39591,2525.5,2525.3,0.7519]
[1724978696535,3.96,2525.4,2525.0,4.107]
[1724978696735,0.39594,2525.3,2525.0,45.30297]
[1724978697350,0.39594,2525.3,2524.9,3.2078]
[1724978697351,0.39595,2525.2,2524.9,3.2078]
[1724978697542,3.81597,2525.1,2524.7,0.39601]
[1724978697838,4.44710185,2525.0,2524.7,41.95841]
[1724978698231,4.44710185,2525.0,2524.7,0.7624]
[1724978698425,4.44710185,2525.0,2524.5,0.75705]
[1724978698426,4.44710185,2525.0,2524.5,0.361]
[1724978698641,4.44710185,2525.0,2524.3,0.3728]
[1724978698642,3.42,2524.7,2524.3,0.3728]
[1724978698839,0.39609,2524.3,2523.9,4.8576]
[1724978699046,3.42,2524.5,2523.9,0.7506]
[1724978699240,0.39611,2524.2,2523.9,0.7506]
[1724978699538,3.42593859,2524.3,2523.8,3.2078]
[1724978699742,3.42,2523.9,2523.4,4.107]
[1724978699929,4.25647678,2524.1,2523.6,0.39619]
[1724978700134,3.42,2524.2,2523.6,0.39619]
[1724978700329,0.36643859,2524.3,2523.7,3.2078]
[1724978700635,0.39616,2523.9,2523.4,48.1148]
[1724978700837,3.42,2524.0,2523.4,44.0078]
[1724978701033,6.6278,2523.5,2522.8,0.39631]
[1724978701229,3.42,2523.1,2522.6,0.3896]
[1724978701432,3.42,2522.7,2521.9,3.6046]
[1724978701642,0.39637,2522.5,2522.0,0.7789]
[1724978701831,0.40229859,2522.6,2522.0,1.17534]
[1724978702136,0.00593859,2522.6,2522.1,0.39643]
[1724978702347,0.00593859,2522.6,2522.0,0.7789]
[1724978702545,0.40229859,2522.6,2522.0,0.7789]
[1724978702744,0.40230859,2522.6,2522.0,0.7789]
[1724978703135,0.40230859,2522.6,2522.0,1.17534]
[1724978703136,0.00593859,2522.6,2522.0,1.17534]
[1724978703541,3.21373859,2522.6,2522.0,0.7789]
[1724978704033,3.21373859,2522.6,2522.1,3.42]
[1724978704239,3.21373859,2522.6,2522.2,3.60421]
[1724978704448,3.21373859,2522.6,2522.3,0.3964]
[1724978704652,3.21373859,2522.6,2522.2,7.1726]
[1724978704829,0.00593859,2522.6,2522.5,0.39637]
[1724978705238,0.00593859,2522.6,2522.5,4.36037]
[1724978705545,0.00227905,2522.6,2522.5,0.39637]
[1724978705848,0.00227905,2522.6,2522.5,4.36037]
[1724978706146,0.00227905,2522.6,2522.5,7.56817]
[1724978706331,3.2078,2523.1,2522.9,0.39629]
[1724978706531,3.8041,2523.3,2522.9,0.3963]
[1724978706532,0.3841,2523.3,2522.9,0.3963]
[1724978706741,0.39629,2523.0,2522.6,0.7482]
[1724978706940,6.6278,2522.7,2521.9,40.8]
[1724978707135,3.42,2522.4,2521.9,40.8]
[1724978707340,0.39641,2522.3,2522.0,0.00593859]
[1724978709540,0.39642,2522.2,2522.0,0.00593859]
[1724978709840,6.6278,2522.4,2522.0,0.00593859]
[1724978709841,3.81643,2522.1,2522.0,0.00593859]
[1724978710237,7.78123,2522.1,2522.0,0.00593859]
[1724978710640,3.81643,2522.1,2522.0,0.00593859]
[1724978710949,3.8073,2522.3,2522.0,0.00593859]
[1724978711138,0.3873,2522.3,2522.0,0.40237859]
[1724978711445,0.3873,2522.3,2522.0,0.00593859]
[1724978711446,4.2037,2522.3,2522.0,0.00593859]
[1724978711640,3.8073,2522.3,2522.0,0.00593859]
[1724978711835,4.2037,2522.3,2522.0,0.00593859]
[1724978712031,3.8073,2522.3,2522.0,0.00593859]